[Event "Open Nuevo Centro. Jornada 1"]
[Site "Chess.com"]
[Date "2020.06.19"]
[Round "8"]
[White "Lupu, Alexandru Mihai"]
[Black "Deusa Ballesteros, Luis Miguel"]
[Result "0-1"]
[WhiteElo "996"]
[BlackElo "1487"]
[TimeControl "180+2"]
[EndTime "12:03:38 PDT"]
[Termination "Victoria de luma2 por tiempo"]

1. d4 {[%clk 0:03:01.9]} 1... Nf6 {[%clk 0:02:51.3]} 2. Bf4 {[%clk 0:03:00.6]}
2... g6 {[%clk 0:02:52]} 3. e3 {[%clk 0:03:00.3]} 3... Bg7 {[%clk 0:02:52.3]} 4.
c3 {[%clk 0:02:58.4]} 4... d6 {[%clk 0:02:52.9]} 5. Bd3 {[%clk 0:02:58.6]} 5...
Nbd7 {[%clk 0:02:53.2]} 6. Nd2 {[%clk 0:02:58]} 6... e5 {[%clk 0:02:53.7]} 7.
Bg3 {[%clk 0:02:56.7]} 7... O-O {[%clk 0:02:53.6]} 8. Ngf3 {[%clk 0:02:54.7]}
8... e4 {[%clk 0:02:54.2]} 9. Bxe4 {[%clk 0:02:49.8]} 9... Nxe4 {[%clk
0:02:52.5]} 10. Nxe4 {[%clk 0:02:49]} 10... Re8 {[%clk 0:02:53.9]} 11. Ned2
{[%clk 0:02:48.3]} 11... Nb6 {[%clk 0:02:53.2]} 12. O-O {[%clk 0:02:46.7]} 12...
Bg4 {[%clk 0:02:52.9]} 13. h3 {[%clk 0:02:45]} 13... Bf5 {[%clk 0:02:52.7]} 14.
Re1 {[%clk 0:02:40.5]} 14... d5 {[%clk 0:02:46.9]} 15. Nh4 {[%clk 0:02:22.9]}
15... Bd3 {[%clk 0:02:42.3]} 16. f3 {[%clk 0:02:12.9]} 16... Nc4 {[%clk
0:02:38.7]} 17. e4 {[%clk 0:02:02.1]} 17... dxe4 {[%clk 0:02:33]} 18. fxe4
{[%clk 0:02:02.1]} 18... Nxd2 {[%clk 0:02:30.9]} 19. Qxd2 {[%clk 0:02:00.4]}
19... Bxe4 {[%clk 0:02:30.6]} 20. Nf3 {[%clk 0:01:40.6]} 20... Bxf3 {[%clk
0:02:29.3]} 21. gxf3 {[%clk 0:01:40.1]} 21... c6 {[%clk 0:02:25.8]} 22. Re3
{[%clk 0:01:34.4]} 22... Rxe3 {[%clk 0:02:22.1]} 23. Qxe3 {[%clk 0:01:33.7]}
23... Qd7 {[%clk 0:02:20.4]} 24. Kg2 {[%clk 0:01:30.4]} 24... Re8 {[%clk
0:02:19.9]} 25. Qd2 {[%clk 0:01:26.5]} 25... Qf5 {[%clk 0:02:16.9]} 26. Re1
{[%clk 0:01:21.5]} 26... Qd7 {[%clk 0:02:14.3]} 27. Bd6 {[%clk 0:01:08.5]} 27...
Rxe1 {[%clk 0:02:05]} 28. Qxe1 {[%clk 0:01:04.6]} 28... Qe6 {[%clk 0:02:04.1]}
29. Qxe6 {[%clk 0:01:03.2]} 29... fxe6 {[%clk 0:02:06]} 30. Bf4 {[%clk
0:01:00.1]} 30... Kf7 {[%clk 0:02:05.8]} 31. Kg3 {[%clk 0:01:00]} 31... h6
{[%clk 0:02:05.8]} 32. Be5 {[%clk 0:01:00.1]} 32... Bf8 {[%clk 0:02:01.8]} 33.
f4 {[%clk 0:00:59.4]} 33... Be7 {[%clk 0:01:54.4]} 34. h4 {[%clk 0:00:56.8]}
34... g5 {[%clk 0:01:50.7]} 35. hxg5 {[%clk 0:00:55.5]} 35... hxg5 {[%clk
0:01:52.6]} 36. fxg5 {[%clk 0:00:55.1]} 36... Bxg5 {[%clk 0:01:54.5]} 37. b4
{[%clk 0:00:51.5]} 37... Bd2 {[%clk 0:01:50.9]} 38. Kf3 {[%clk 0:00:39.6]} 38...
Bxc3 {[%clk 0:01:46.7]} 39. a3 {[%clk 0:00:39.3]} 39... Kg6 {[%clk 0:01:45.1]}
40. Ke3 {[%clk 0:00:39]} 40... Kf5 {[%clk 0:01:44.9]} 41. Kd3 {[%clk 0:00:38.8]}
41... Bb2 {[%clk 0:01:43.7]} 42. a4 {[%clk 0:00:36.9]} 42... a6 {[%clk
0:01:41.8]} 43. Kc2 {[%clk 0:00:33.2]} 43... Ba3 {[%clk 0:01:39.7]} 44. Kb3
{[%clk 0:00:33.1]} 44... Bc1 {[%clk 0:01:39.2]} 45. Kc2 {[%clk 0:00:33.4]} 45...
Be3 {[%clk 0:01:39.3]} 46. Kd3 {[%clk 0:00:32.4]} 46... Bg5 {[%clk 0:01:37.2]}
47. Kc4 {[%clk 0:00:31.6]} 47... Be7 {[%clk 0:01:33.6]} 48. b5 {[%clk 0:00:17]}
48... Ke4 {[%clk 0:01:29.8]} 49. Bh2 {[%clk 0:00:15.2]} 49... axb5+ {[%clk
0:01:22.4]} 50. axb5 {[%clk 0:00:15.1]} 50... cxb5+ {[%clk 0:01:22.4]} 51. Kc3
{[%clk 0:00:13.8]} 51... b4+ {[%clk 0:01:22]} 52. Kc4 {[%clk 0:00:13.5]} 52...
b5+ {[%clk 0:01:18.4]} 53. Kxb5 {[%clk 0:00:10.2]} 53... b3 {[%clk 0:01:16.1]}
0

[Event "Open Nuevo Centro. Jornada 1"]
[Site "Chess.com"]
[Date "2020.06.19"]
[Round "8"]
[White "Gerona Maura, Jesus"]
[Black "G�mez Alonso, �scar"]
[Result "1-0"]
[WhiteElo "1548"]
[BlackElo "1736"]
[TimeControl "180+2"]
[EndTime "12:03:40 PDT"]
[Termination "Victoria de Retistente por abandono"]

1. Nf3 {[%clk 0:03:01.9]} 1... d5 {[%clk 0:02:57.1]} 2. e4 {[%clk 0:03:02.5]}
2... dxe4 {[%clk 0:02:55.8]} 3. Ng5 {[%clk 0:03:03.4]} 3... Nf6 {[%clk
0:02:56.5]} 4. d3 {[%clk 0:03:04]} 4... h6 {[%clk 0:02:52.9]} 5. Nxe4 {[%clk
0:03:03.3]} 5... Nxe4 {[%clk 0:02:53.7]} 6. dxe4 {[%clk 0:03:04.5]} 6... Qxd1+
{[%clk 0:02:54.2]} 7. Kxd1 {[%clk 0:03:06.1]} 7... g6 {[%clk 0:02:53.4]} 8. c3
{[%clk 0:03:06.8]} 8... Bg7 {[%clk 0:02:53.9]} 9. Be3 {[%clk 0:03:07.3]} 9...
O-O {[%clk 0:02:54.7]} 10. Kc2 {[%clk 0:03:08.2]} 10... b6 {[%clk 0:02:53.7]}
11. Nd2 {[%clk 0:03:09.1]} 11... Bb7 {[%clk 0:02:54.6]} 12. f3 {[%clk
0:03:10.2]} 12... Nd7 {[%clk 0:02:55.3]} 13. Be2 {[%clk 0:03:11]} 13... c5
{[%clk 0:02:55.5]} 14. Rad1 {[%clk 0:03:11.4]} 14... Rad8 {[%clk 0:02:55.1]} 15.
h4 {[%clk 0:03:05]} 15... Nf6 {[%clk 0:02:37.2]} 16. g4 {[%clk 0:03:00.4]} 16...
a6 {[%clk 0:02:07.5]} 17. Nc4 {[%clk 0:02:34.5]} 17... Nxe4 {[%clk 0:01:19.8]}
18. fxe4 {[%clk 0:02:11.6]} 18... Bxe4+ {[%clk 0:01:17.6]} 19. Kb3 {[%clk
0:02:12.6]} 19... Bxh1 {[%clk 0:01:10.9]} 20. Rxh1 {[%clk 0:02:13.4]} 20... b5
{[%clk 0:01:08.4]} 21. Nd2 {[%clk 0:02:11.1]} 21... c4+ {[%clk 0:01:08.6]} 22.
Kc2 {[%clk 0:02:09.9]} 22... Rd6 {[%clk 0:00:56]} 23. Bf4 {[%clk 0:01:53.6]}
23... e5 {[%clk 0:00:56.7]} 24. Be3 {[%clk 0:01:49.1]} 24... Rfd8 {[%clk
0:00:55.7]} 25. Ne4 {[%clk 0:01:38]} 25... Rc6 {[%clk 0:00:49.4]} 26. Bf3 {[%clk
0:01:34.6]} 26... Re6 {[%clk 0:00:46.9]} 27. Nc5 {[%clk 0:01:32.5]} 27... Re7
{[%clk 0:00:41]} 28. Nxa6 {[%clk 0:01:28.2]} 28... Rd3 {[%clk 0:00:41.6]} 29.
Re1 {[%clk 0:01:27.5]} 29... e4 {[%clk 0:00:38]} 30. Bg2 {[%clk 0:01:23.7]}
30... f5 {[%clk 0:00:24.5]} 31. Nb4 {[%clk 0:01:21.9]} 31... Rdd7 {[%clk
0:00:19.6]} 32. gxf5 {[%clk 0:01:22.4]} 32... gxf5 {[%clk 0:00:20.3]} 33. Bh3
{[%clk 0:01:22.9]} 33... Rf7 {[%clk 0:00:20.7]} 34. Rf1 {[%clk 0:01:18.3]} 34...
Be5 {[%clk 0:00:20.8]} 35. Bxh6 {[%clk 0:01:17.3]} 35... Kh7 {[%clk 0:00:21.4]}
36. Bxf5+ {[%clk 0:01:12.3]} 36... Rxf5 {[%clk 0:00:21.4]} 37. Rxf5 {[%clk
0:01:12.1]} 37... Re7 {[%clk 0:00:17.7]} 38. Bg5 {[%clk 0:01:11.6]} 38... Re8
{[%clk 0:00:18.1]} 39. Rf7+ {[%clk 0:01:10.6]} 39... Kg6 {[%clk 0:00:18.5]} 40.
Rb7 {[%clk 0:01:04.3]} 40... Bg3 {[%clk 0:00:17.4]} 41. Rb6+ {[%clk 0:00:57.1]}
41... Kh5 {[%clk 0:00:17.5]} 42. Nd5 {[%clk 0:00:55.5]} 42... Re5 {[%clk
0:00:13.9]} 43. Nf6+ {[%clk 0:00:55.7]} 43... Kg6 {[%clk 0:00:13.9]} 44. Ng4+
{[%clk 0:00:56.3]} 44... Kf5 {[%clk 0:00:14.9]} 45. Nxe5 {[%clk 0:00:57.1]}
45... Kxe5 {[%clk 0:00:16.3]} 46. Rxb5+ {[%clk 0:00:58.1]} 46... Ke6 {[%clk
0:00:16.3]} 47. h5 {[%clk 0:00:57.8]} 47... Bf2 {[%clk 0:00:17.2]} 48. h6 {[%clk
0:00:57.6]} 48... e3 {[%clk 0:00:18.4]} 49. h7 {[%clk 0:00:53.6]} 49... e2
{[%clk 0:00:18.4]} 50. Bd2 {[%clk 0:00:52.1]} 50... Bd4 {[%clk 0:00:18.2]} 51.
cxd4 {[%clk 0:00:52.2]} 51... c3 {[%clk 0:00:19.4]} 52. bxc3 {[%clk 0:00:52]}
1

[Event "Open Nuevo Centro. Jornada 1"]
[Site "Chess.com"]
[Date "2020.06.19"]
[Round "8"]
[White "Sanchis Bon, Sergi"]
[Black "Gukasov, Artem"]
[Result "0-1"]
[WhiteElo "1040"]
[BlackElo "1534"]
[TimeControl "180+2"]
[EndTime "12:03:45 PDT"]
[Termination "Victoria de ArtemGukasov por tiempo"]

1. e4 {[%clk 0:03:01.3]} 1... e6 {[%clk 0:03:01.1]} 2. Qf3 {[%clk 0:02:59.8]}
2... d5 {[%clk 0:03:03]} 3. exd5 {[%clk 0:02:57.5]} 3... exd5 {[%clk 0:03:04.1]}
4. Nc3 {[%clk 0:02:56.4]} 4... Nf6 {[%clk 0:03:02.2]} 5. d4 {[%clk 0:02:44.6]}
5... c6 {[%clk 0:02:57.4]} 6. Be3 {[%clk 0:02:30.3]} 6... Bd6 {[%clk 0:02:56.1]}
7. h3 {[%clk 0:02:28.4]} 7... O-O {[%clk 0:02:53.3]} 8. Nge2 {[%clk 0:02:23.4]}
8... Re8 {[%clk 0:02:52.3]} 9. g4 {[%clk 0:02:19]} 9... h6 {[%clk 0:02:50.7]}
10. Bg2 {[%clk 0:02:18.3]} 10... Be6 {[%clk 0:02:44.6]} 11. Nf4 {[%clk
0:02:05.4]} 11... Bxf4 {[%clk 0:02:43.1]} 12. Qxf4 {[%clk 0:01:50.7]} 12... Nbd7
{[%clk 0:02:40.4]} 13. g5 {[%clk 0:01:39.5]} 13... hxg5 {[%clk 0:02:40.7]} 14.
Qxg5 {[%clk 0:01:37.9]} 14... Qb6 {[%clk 0:02:40.4]} 15. h4 {[%clk 0:01:33]}
15... Qxb2 {[%clk 0:02:37.8]} 16. O-O {[%clk 0:01:26.4]} 16... Qxc3 {[%clk
0:02:36.3]} 17. h5 {[%clk 0:01:18.1]} 17... Ng4 {[%clk 0:02:33.2]} 18. h6 {[%clk
0:01:14.3]} 18... g6 {[%clk 0:02:34.4]} 19. f3 {[%clk 0:00:47.2]} 19... Qxe3+
{[%clk 0:02:25.3]} 20. Qxe3 {[%clk 0:00:43.6]} 20... Nxe3 {[%clk 0:02:27.2]} 21.
Rf2 {[%clk 0:00:40.2]} 21... Kh7 {[%clk 0:02:27.3]} 22. Re2 {[%clk 0:00:36.6]}
22... Nf5 {[%clk 0:02:13.5]} 23. Kf2 {[%clk 0:00:33.7]} 23... Kxh6 {[%clk
0:02:13.5]} 24. Ree1 {[%clk 0:00:34.2]} 24... Nxd4 {[%clk 0:02:03.7]} 25. Rh1+
{[%clk 0:00:33.4]} 25... Kg7 {[%clk 0:02:03.7]} 26. Rh2 {[%clk 0:00:33]} 26...
Nxc2 {[%clk 0:02:03.4]} 27. Rah1 {[%clk 0:00:30.4]} 27... Ne5 {[%clk 0:01:53.5]}
28. Rh7+ {[%clk 0:00:27.5]} 28... Kf6 {[%clk 0:01:34.1]} 29. R1h4 {[%clk
0:00:22.9]} 29... Nc4 {[%clk 0:01:30.7]} 30. Rf4+ {[%clk 0:00:20.9]} 30... Ke7
{[%clk 0:01:25.2]} 31. Rg7 {[%clk 0:00:15.1]} 31... Kd6 {[%clk 0:01:24.5]} 32.
Bf1 {[%clk 0:00:10.5]} 32... N4e3 {[%clk 0:01:20.5]} 33. Bd3 {[%clk 0:00:08.2]}
33... Nd1+ {[%clk 0:00:57.6]} 34. Ke2 {[%clk 0:00:06.4]} 34... Nc3+ {[%clk
0:00:54.2]} 35. Kd2 {[%clk 0:00:05.3]} 35... Nb4 {[%clk 0:00:47.9]} 36. Kxc3
{[%clk 0:00:05.4]} 36... Nxd3 {[%clk 0:00:48.9]} 37. Kxd3 {[%clk 0:00:06.3]}
37... Rg8 {[%clk 0:00:49.8]} 38. Rh7 {[%clk 0:00:06]} 38... Rh8 {[%clk
0:00:18.9]} 39. Rh2 {[%clk 0:00:07.9]} 39... Rh4 {[%clk 0:00:19.7]} 40. Rfxh4
{[%clk 0:00:04.4]} 40... Bf5+ {[%clk 0:00:19.6]} 41. Kd4 {[%clk 0:00:02.3]}
41... Re8 {[%clk 0:00:21.5]} 42. Kc3 {[%clk 0:00:03]} 42... c5 {[%clk
0:00:23.4]} 43. Kd2 {[%clk 0:00:03.1]} 43... d4 {[%clk 0:00:25.3]} 44. Re2
{[%clk 0:00:02.9]} 44... Re3 {[%clk 0:00:27.2]} 0

[Event "Open Nuevo Centro. Jornada 1"]
[Site "Chess.com"]
[Date "2020.06.19"]
[Round "8"]
[White "Luque Saiz, Andres"]
[Black "Sanchez Saez, Francisco"]
[Result "1/2-1/2"]
[WhiteElo "1935"]
[BlackElo "2281"]
[TimeControl "180+2"]
[EndTime "12:03:59 PDT"]
[Termination "Partida en tablas por material insuficiente"]

1. e4 {[%clk 0:03:01.9]} 1... g6 {[%clk 0:03:01.9]} 2. d4 {[%clk 0:03:02.3]}
2... Bg7 {[%clk 0:03:02.6]} 3. Nf3 {[%clk 0:03:03.8]} 3... d6 {[%clk 0:02:57.7]}
4. Be2 {[%clk 0:03:04.1]} 4... Nf6 {[%clk 0:02:56.6]} 5. Nc3 {[%clk 0:03:05.1]}
5... O-O {[%clk 0:02:57.6]} 6. O-O {[%clk 0:03:05.3]} 6... Nc6 {[%clk
0:02:57.2]} 7. d5 {[%clk 0:03:05.2]} 7... Nb8 {[%clk 0:02:57.8]} 8. h3 {[%clk
0:03:04]} 8... e5 {[%clk 0:02:47.5]} 9. dxe6 {[%clk 0:02:59.7]} 9... Bxe6 {[%clk
0:02:47]} 10. Be3 {[%clk 0:02:46.3]} 10... Nc6 {[%clk 0:02:47.4]} 11. Nd4 {[%clk
0:02:46.7]} 11... Bd7 {[%clk 0:02:44.5]} 12. a4 {[%clk 0:02:41.3]} 12... Re8
{[%clk 0:02:35.1]} 13. Bd3 {[%clk 0:02:25.7]} 13... Nb4 {[%clk 0:02:28.2]} 14.
Re1 {[%clk 0:02:15.2]} 14... Nxd3 {[%clk 0:02:25.4]} 15. cxd3 {[%clk 0:02:17.1]}
15... c6 {[%clk 0:02:20.9]} 16. f4 {[%clk 0:02:10.9]} 16... Qa5 {[%clk 0:02:21]}
17. Qd2 {[%clk 0:01:50.6]} 17... Nh5 {[%clk 0:02:20.7]} 18. Nc2 {[%clk
0:01:48.5]} 18... f5 {[%clk 0:02:11.9]} 19. b4 {[%clk 0:01:07.1]} 19... Qd8
{[%clk 0:02:05.3]} 20. Bf2 {[%clk 0:01:02.6]} 20... Qf6 {[%clk 0:02:00.4]} 21.
Ra3 {[%clk 0:00:56.3]} 21... fxe4 {[%clk 0:01:57.7]} 22. Nxe4 {[%clk 0:00:57.9]}
22... Qxf4 {[%clk 0:01:58.4]} 23. Qxf4 {[%clk 0:00:58.6]} 23... Nxf4 {[%clk
0:02:00.3]} 24. Nxd6 {[%clk 0:00:59.7]} 24... Rxe1+ {[%clk 0:01:55.4]} 25. Bxe1
{[%clk 0:01:01.6]} 25... Bf5 {[%clk 0:01:32.5]} 26. Nxf5 {[%clk 0:00:59.9]}
26... gxf5 {[%clk 0:01:34.4]} 27. Bd2 {[%clk 0:00:57.5]} 27... Nd5 {[%clk
0:01:34.1]} 28. Kf2 {[%clk 0:00:54.1]} 28... Re8 {[%clk 0:01:34.7]} 29. b5
{[%clk 0:00:53.4]} 29... c5 {[%clk 0:01:31.4]} 30. Kf3 {[%clk 0:00:37]} 30...
Kf7 {[%clk 0:01:31.1]} 31. Ne3 {[%clk 0:00:32.5]} 31... Ke6 {[%clk 0:01:30.2]}
32. Nxd5 {[%clk 0:00:30.2]} 32... Kxd5 {[%clk 0:01:32.1]} 33. Be3 {[%clk
0:00:29.1]} 33... Bd4 {[%clk 0:01:32.3]} 34. Bxd4 {[%clk 0:00:29.1]} 34... Kxd4
{[%clk 0:01:33]} 35. Kf4 {[%clk 0:00:29.9]} 35... Re2 {[%clk 0:01:20.8]} 36. g4
{[%clk 0:00:27.6]} 36... fxg4 {[%clk 0:01:21.6]} 37. hxg4 {[%clk 0:00:29.5]}
37... Rd2 {[%clk 0:01:15.5]} 38. b6 {[%clk 0:00:29.2]} 38... axb6 {[%clk
0:01:15.1]} 39. Rb3 {[%clk 0:00:29.7]} 39... Rxd3 {[%clk 0:01:16.4]} 40. Rxb6
{[%clk 0:00:30.2]} 40... c4 {[%clk 0:01:15.6]} 41. Rxb7 {[%clk 0:00:31.1]} 41...
Rh3 {[%clk 0:01:15.4]} 42. a5 {[%clk 0:00:31.3]} 42... Rh6 {[%clk 0:01:13.5]}
43. Rd7+ {[%clk 0:00:23.8]} 43... Kc5 {[%clk 0:01:11.9]} 44. Rc7+ {[%clk
0:00:24.2]} 44... Kb5 {[%clk 0:01:12.9]} 45. Kg5 {[%clk 0:00:24.2]} 45... Rc6
{[%clk 0:01:08.6]} 46. Rxh7 {[%clk 0:00:21.4]} 46... c3 {[%clk 0:01:06.4]} 47.
Rh1 {[%clk 0:00:22]} 47... c2 {[%clk 0:01:04.7]} 48. Rc1 {[%clk 0:00:23.9]}
48... Kxa5 {[%clk 0:01:06.2]} 49. Kf4 {[%clk 0:00:24.5]} 49... Kb4 {[%clk
0:01:07.2]} 50. g5 {[%clk 0:00:24.3]} 50... Kb3 {[%clk 0:01:07.2]} 51. Kf5
{[%clk 0:00:22.8]} 51... Kb2 {[%clk 0:01:04.7]} 52. Rg1 {[%clk 0:00:23.9]} 52...
c1=Q {[%clk 0:00:54.5]} 53. Rxc1 {[%clk 0:00:24]} 53... Rxc1 {[%clk 0:00:56.4]}
54. g6 {[%clk 0:00:25.6]} 54... Kc3 {[%clk 0:00:50.8]} 55. g7 {[%clk 0:00:25.8]}
55... Rf1+ {[%clk 0:00:52.7]} 56. Ke6 {[%clk 0:00:26.2]} 56... Rg1 {[%clk
0:00:54.6]} 57. Kf7 {[%clk 0:00:26.9]} 57... Kd4 {[%clk 0:00:54.3]} 58. g8=Q
{[%clk 0:00:27.4]} 58... Rxg8 {[%clk 0:00:55.7]} 59. Kxg8 {[%clk 0:00:29.3]}
1/2-1

[Event "Open Nuevo Centro. Jornada 1"]
[Site "Chess.com"]
[Date "2020.06.19"]
[Round "8"]
[White "Macias Pino, Diego"]
[Black "Garcia, Jhoel"]
[Result "0-1"]
[WhiteElo "2161"]
[BlackElo "2330"]
[TimeControl "180+2"]
[EndTime "12:04:15 PDT"]
[Termination "Victoria de shoels por abandono"]

1. e4 {[%clk 0:03:01.9]} 1... c5 {[%clk 0:03:01]} 2. Nc3 {[%clk 0:02:59.9]} 2...
Nc6 {[%clk 0:03:02.4]} 3. Bb5 {[%clk 0:03:00.6]} 3... Nd4 {[%clk 0:03:02.4]} 4.
Bc4 {[%clk 0:03:01.6]} 4... Nf6 {[%clk 0:03:02.8]} 5. Nf3 {[%clk 0:02:52.9]}
5... e6 {[%clk 0:02:59.5]} 6. O-O {[%clk 0:02:53.1]} 6... d6 {[%clk 0:02:55.5]}
7. d3 {[%clk 0:02:50.6]} 7... Be7 {[%clk 0:02:54.3]} 8. Nxd4 {[%clk 0:02:51.1]}
8... cxd4 {[%clk 0:02:55.1]} 9. Ne2 {[%clk 0:02:52.3]} 9... e5 {[%clk 0:02:52]}
10. f4 {[%clk 0:02:52.7]} 10... O-O {[%clk 0:02:52.2]} 11. Bb3 {[%clk
0:02:53.3]} 11... a5 {[%clk 0:02:21.4]} 12. a4 {[%clk 0:02:52.4]} 12... Be6
{[%clk 0:01:51.8]} 13. Bxe6 {[%clk 0:02:40.8]} 13... fxe6 {[%clk 0:01:52.1]} 14.
fxe5 {[%clk 0:02:41.5]} 14... dxe5 {[%clk 0:01:51.1]} 15. Bd2 {[%clk 0:02:42.9]}
15... Qb6 {[%clk 0:01:48.9]} 16. b3 {[%clk 0:02:37.5]} 16... Nxe4 {[%clk
0:01:49.4]} 17. dxe4 {[%clk 0:02:32.3]} 17... d3+ {[%clk 0:01:49.8]} 18. Kh1
{[%clk 0:02:32.7]} 18... dxe2 {[%clk 0:01:16.5]} 19. Qxe2 {[%clk 0:02:13.4]}
19... Bc5 {[%clk 0:01:13.2]} 20. Rxf8+ {[%clk 0:01:56.1]} 20... Rxf8 {[%clk
0:01:12.3]} 21. Rf1 {[%clk 0:01:57.5]} 21... Rxf1+ {[%clk 0:01:13.1]} 22. Qxf1
{[%clk 0:01:58.7]} 22... Bb4 {[%clk 0:01:02.1]} 23. Bxb4 {[%clk 0:01:15.3]}
23... Qxb4 {[%clk 0:00:59.9]} 24. Qe2 {[%clk 0:01:15.6]} 24... Qd4 {[%clk
0:00:59.4]} 25. h3 {[%clk 0:01:14.2]} 25... h6 {[%clk 0:00:59.5]} 26. Kh2 {[%clk
0:01:13.8]} 26... Kh7 {[%clk 0:00:46.3]} 27. Qg4 {[%clk 0:00:53.3]} 27... Qe3
{[%clk 0:00:34]} 28. Qf3 {[%clk 0:00:40.8]} 28... Qd2 {[%clk 0:00:28.3]} 29. Qd3
{[%clk 0:00:37.7]} 29... Qf2 {[%clk 0:00:21.4]} 30. Qc4 {[%clk 0:00:19.5]} 30...
Qf4+ {[%clk 0:00:19.6]} 31. Kh1 {[%clk 0:00:19.8]} 31... Qf6 {[%clk 0:00:19.1]}
32. Kg1 {[%clk 0:00:19.1]} 32... b6 {[%clk 0:00:19.7]} 33. Qf1 {[%clk
0:00:20.2]} 33... Qg5 {[%clk 0:00:19.6]} 34. Qe2 {[%clk 0:00:19.4]} 34... Qf4
{[%clk 0:00:19.8]} 35. Qd3 {[%clk 0:00:20.5]} 35... Qc1+ {[%clk 0:00:20.5]} 36.
Kh2 {[%clk 0:00:21.4]} 36... Qf4+ {[%clk 0:00:21]} 37. Kg1 {[%clk 0:00:21.9]}
37... Qf6 {[%clk 0:00:21.4]} 38. Qe3 {[%clk 0:00:19.3]} 38... Qd8 {[%clk
0:00:21.5]} 39. Kh2 {[%clk 0:00:19.8]} 39... Qd1 {[%clk 0:00:22.2]} 40. Qxb6
{[%clk 0:00:20.5]} 40... Qxc2 {[%clk 0:00:22.3]} 41. Qe3 {[%clk 0:00:21.2]}
41... Qc6 {[%clk 0:00:21.1]} 42. Qd3 {[%clk 0:00:21.6]} 42... Qc1 {[%clk
0:00:21.4]} 43. Qf3 {[%clk 0:00:20.4]} 43... Qf4+ {[%clk 0:00:22.5]} 44. Qxf4
{[%clk 0:00:20.6]} 44... exf4 {[%clk 0:00:24]} 45. Kg1 {[%clk 0:00:21.9]} 45...
Kg6 {[%clk 0:00:25.4]} 46. Kf2 {[%clk 0:00:23.5]} 46... Kf6 {[%clk 0:00:26.6]}
47. Ke2 {[%clk 0:00:24.6]} 47... Ke5 {[%clk 0:00:26.2]} 48. Kd3 {[%clk
0:00:25.4]} 48... g5 {[%clk 0:00:26.3]} 49. b4 {[%clk 0:00:25.2]} 49... axb4
{[%clk 0:00:27.1]} 50. a5 {[%clk 0:00:26.6]} 50... Kd6 {[%clk 0:00:27.4]} 51.
Kc4 {[%clk 0:00:26.2]} 51... Kc6 {[%clk 0:00:27.9]} 52. Kxb4 {[%clk 0:00:26.7]}
52... h5 {[%clk 0:00:29.3]} 53. Kc4 {[%clk 0:00:27]} 53... g4 {[%clk 0:00:30.7]}
54. hxg4 {[%clk 0:00:24.3]} 54... h4 {[%clk 0:00:28.6]} 55. g5 {[%clk
0:00:21.8]} 55... f3 {[%clk 0:00:29.9]} 56. g6 {[%clk 0:00:22]} 56... fxg2
{[%clk 0:00:30.2]} 0

[Event "Open Nuevo Centro. Jornada 1"]
[Site "Chess.com"]
[Date "2020.06.19"]
[Round "8"]
[White "Miranda Calvo, Max Rodrigo"]
[Black "Elenkov Olmo, Ivan"]
[Result "1-0"]
[WhiteElo "1199"]
[BlackElo "816"]
[TimeControl "180+2"]
[EndTime "12:04:41 PDT"]
[Termination "Victoria de bas-max-miranda por jaque mate"]

1. e4 {[%clk 0:00:34.8]} 1... e5 {[%clk 0:01:57.7]} 2. Nf3 {[%clk 0:00:35.6]}
2... Nc6 {[%clk 0:01:56.2]} 3. Bc4 {[%clk 0:00:35]} 3... h6 {[%clk 0:01:52.8]}
4. d3 {[%clk 0:00:35.2]} 4... Nf6 {[%clk 0:01:50.9]} 5. Be3 {[%clk 0:00:33.6]}
5... d5 {[%clk 0:01:48.3]} 6. exd5 {[%clk 0:00:33.5]} 6... Nxd5 {[%clk 0:01:47]}
7. Bxd5 {[%clk 0:00:31.7]} 7... Qxd5 {[%clk 0:01:45.9]} 8. c4 {[%clk 0:00:32.6]}
8... Qd7 {[%clk 0:01:41.7]} 9. Nbd2 {[%clk 0:00:32.7]} 9... Be7 {[%clk
0:01:36.4]} 10. O-O {[%clk 0:00:30.3]} 10... Bf6 {[%clk 0:01:34.9]} 11. Qc2
{[%clk 0:00:29.7]} 11... O-O {[%clk 0:01:32.3]} 12. h3 {[%clk 0:00:30.7]} 12...
b6 {[%clk 0:01:28.4]} 13. b3 {[%clk 0:00:30.1]} 13... Bb7 {[%clk 0:01:26.4]} 14.
Rad1 {[%clk 0:00:29.7]} 14... a5 {[%clk 0:01:23.5]} 15. a4 {[%clk 0:00:27.9]}
15... Rfe8 {[%clk 0:01:15]} 16. Rfe1 {[%clk 0:00:28.7]} 16... Be7 {[%clk
0:01:10.8]} 17. Nf1 {[%clk 0:00:29.2]} 17... Nb4 {[%clk 0:01:07.9]} 18. Qb1
{[%clk 0:00:27.3]} 18... Red8 {[%clk 0:00:59.3]} 19. N3h2 {[%clk 0:00:28.1]}
19... Nxd3 {[%clk 0:00:58]} 20. Re2 {[%clk 0:00:24.6]} 20... Qf5 {[%clk
0:00:47.3]} 21. Ng3 {[%clk 0:00:21.7]} 21... Qh7 {[%clk 0:00:46.8]} 22. Red2
{[%clk 0:00:22.5]} 22... Nb4 {[%clk 0:00:40.5]} 23. Qxh7+ {[%clk 0:00:24.4]}
23... Kxh7 {[%clk 0:00:39.4]} 24. Rxd8 {[%clk 0:00:26.3]} 24... Rxd8 {[%clk
0:00:37.1]} 25. Rxd8 {[%clk 0:00:24.6]} 25... Bxd8 {[%clk 0:00:37.3]} 26. Ng4
{[%clk 0:00:23.9]} 26... f6 {[%clk 0:00:35.1]} 27. f3 {[%clk 0:00:23.3]} 27...
Be7 {[%clk 0:00:33]} 28. Kf2 {[%clk 0:00:24.3]} 28... Nd3+ {[%clk 0:00:32.2]}
29. Ke2 {[%clk 0:00:24.9]} 29... Nb4 {[%clk 0:00:30.2]} 30. Nf5 {[%clk
0:00:24.1]} 30... Bc5 {[%clk 0:00:26.8]} 31. Bxc5 {[%clk 0:00:24.7]} 31... bxc5
{[%clk 0:00:26.7]} 32. Nge3 {[%clk 0:00:22.8]} 32... c6 {[%clk 0:00:20.3]} 33.
g4 {[%clk 0:00:23]} 33... Kg8 {[%clk 0:00:20.3]} 34. Ne7+ {[%clk 0:00:23.8]}
34... Kf7 {[%clk 0:00:21.2]} 35. N7f5 {[%clk 0:00:23.3]} 35... Kf8 {[%clk
0:00:22]} 36. Nd6 {[%clk 0:00:21.3]} 36... Ke7 {[%clk 0:00:22.3]} 37. Nxb7
{[%clk 0:00:22]} 37... Kd7 {[%clk 0:00:20.4]} 38. Nxc5+ {[%clk 0:00:22.9]} 38...
Kd6 {[%clk 0:00:19.7]} 39. Nb7+ {[%clk 0:00:23.7]} 39... Kc7 {[%clk 0:00:18.2]}
40. Nxa5 {[%clk 0:00:24.7]} 40... Kb6 {[%clk 0:00:18.9]} 41. Nxc6 {[%clk
0:00:24]} 41... Kxc6 {[%clk 0:00:19.5]} 42. Kd2 {[%clk 0:00:21.5]} 42... Kc7
{[%clk 0:00:20.1]} 43. Kc3 {[%clk 0:00:22.5]} 43... Nc6 {[%clk 0:00:21]} 44.
Nd5+ {[%clk 0:00:18]} 44... Kd7 {[%clk 0:00:21]} 45. c5 {[%clk 0:00:16.7]} 45...
Nb8 {[%clk 0:00:20.9]} 46. a5 {[%clk 0:00:17.3]} 46... Kc6 {[%clk 0:00:20.4]}
47. Kc4 {[%clk 0:00:18.2]} 47... g5 {[%clk 0:00:18.5]} 48. b4 {[%clk 0:00:19.1]}
48... e4 {[%clk 0:00:16.8]} 49. fxe4 {[%clk 0:00:19.7]} 49... Kb7 {[%clk
0:00:16.3]} 50. b5 {[%clk 0:00:19.1]} 50... Kc8 {[%clk 0:00:16.8]} 51. b6 {[%clk
0:00:19.2]} 51... Kb7 {[%clk 0:00:17.7]} 52. c6+ {[%clk 0:00:19.7]} 52... Kc8
{[%clk 0:00:18.5]} 53. c7 {[%clk 0:00:18.7]} 53... Na6 {[%clk 0:00:18.4]} 54.
Kb5 {[%clk 0:00:19.8]} 54... Kb7 {[%clk 0:00:16]} 55. Ne7 {[%clk 0:00:20.2]}
55... Ka8 {[%clk 0:00:14.5]} 56. c8=Q+ {[%clk 0:00:20.4]} 56... Nb8 {[%clk
0:00:13.4]} 57. Nc6 {[%clk 0:00:21.1]} 57... f5 {[%clk 0:00:09.7]} 58. Qxb8#
{[%clk 0:00:21.9]} 1